[Event "9th RTU Rapid 2019"]
[Site "Riga"]
[Date "2019.08.04"]
[Round "6.4"]
[White "Nevednichy, Vladislav"]
[Black "Pultinevicius, Paulius"]
[Result "0-1"]
[WhiteElo "2495"]
[BlackElo "2501"]
[PlyCount "70"]
[EventDate "2019.08.05"]
[EventType "swiss"]
[EventCountry "LAT"]
[TimeControl "5400+30"]
[WhiteClock "0:00:52"]
[BlackClock "0:00:18"]

1. e4 {[%emt 1:15:25]} c6 {[%emt 1:15:33]} 2. d4 {[%emt 0:00:35]} d5 {[%emt 0:00:27]} 3. exd5 {[%emt 0:00:26]} cxd5 {[%emt 0:00:26]} 4. Bd3 {[%emt 0:00:28]} Nc6 {[%emt 0:00:29]} 5. c3 {[%emt 0:00:26]} Nf6 {[%emt 0:00:28]} 6. h3 {[%emt 0:00:44]} g6 {[%emt 0:01:12]} 7. Nf3 {[%emt 0:00:37]} Bg7 {[%emt 0:00:30]} 8. O-O {[%emt 0:00:30]} Qc7 {[%emt 0:00:28]} 9. Re1 {[%emt 0:00:35]} O-O {[%emt 0:00:28]} 10. Nbd2 {[%emt 0:00:42]} Bf5 {[%emt 0:00:27]} 11. Nf1 {[%emt 0:00:43]} Bxd3 {[%emt 0:00:31]} 12. Qxd3 {[%emt 0:00:26]} e6 {[%emt 0:00:27]} 13. Bg5 {[%emt 0:00:54]} Ne4 {[%emt 0:00:39]} 14. Bh4 {[%emt 0:00:43]} Rab8 {[%emt 0:01:08]} 15. N3d2 {[%emt 0:00:31]} Nd6 {[%emt 0:01:51]} 16. Bg3 {[%emt 0:00:29]} Rbd8 {[%emt 0:00:33]} 17. Ne3 {[%emt 0:00:38]} Qb6 {[%emt 0:00:44]} 18. Rab1 {[%emt 0:00:34]} Rfe8 {[%emt 0:00:30]} 19. h4 {[%emt 0:00:54]} Ne7 {[%emt 0:00:34]} 20. h5 {[%emt 0:00:36]} Nef5 {[%emt 0:00:44]} 21. hxg6 {[%emt 0:00:46]} hxg6 {[%emt 0:00:30]} 22. Bf4 {[%emt 0:00:39]} Nxe3 {[%emt 0:01:58]} 23. Rxe3 {[%emt 0:00:39]} Nf5 {[%emt 0:00:31]} 24. Rh3 {[%emt 0:00:31]} e5 {[%emt 0:00:45]} 25. Bxe5 {[%emt 0:00:37]} Bxe5 26. dxe5 {[%emt 0:00:26]} Rxe5 {[%emt 0:01:05]} 27. Rh2 {[%emt 0:01:39]} Rde8 {[%emt 0:01:06]} 28. g4 {[%emt 0:02:17]} Re3 {[%emt 0:03:06]} 29. Qxd5 {[%emt 0:02:59]} Rd8 {[%emt 0:01:44]} 30. Nc4 {[%emt 0:01:44]} Qf6 {[%emt 0:04:02]} 31. Qxb7 {[%emt 0:04:23]} Red3 {[%emt 0:00:55]} 32. Qe4 {[%emt 0:01:04]} Nh4 {[%emt 0:00:38]} 33. Rxh4 {[%emt 0:01:12]} Qxh4 {[%emt 0:00:30]} 34. Ne3 {[%emt 0:00:33]} Rd2 {[%emt 0:00:44]} 35. Qf4 {[%emt 0:00:47]} R8d6 {[%emt 0:00:55]} 0-1

[Event "9th RTU Rapid 2019"]
[Site "Riga"]
[Date "2019.08.04"]
[Round "6.5"]
[White "Kantans, Toms"]
[Black "Dubrovin, Robert"]
[Result "1-0"]
[WhiteElo "2471"]
[BlackElo "2282"]
[PlyCount "97"]
[EventDate "2019.08.05"]
[EventType "swiss"]
[EventCountry "LAT"]
[TimeControl "5400+30"]
[WhiteClock "0:00:10"]
[BlackClock "0:00:08"]

1. e4 {[%emt 1:15:23]} e6 {[%emt 1:15:22]} 2. c4 {[%emt 0:00:28]} d5 {[%emt 0:00:27]} 3. cxd5 {[%emt 0:00:26]} exd5 {[%emt 0:00:27]} 4. exd5 {[%emt 0:00:26]} Nf6 {[%emt 0:00:29]} 5. Nc3 {[%emt 0:00:26]} Nxd5 {[%emt 0:00:39]} 6. Nf3 {[%emt 0:00:27]} Be7 {[%emt 0:00:44]} 7. d4 {[%emt 0:00:27]} O-O {[%emt 0:00:30]} 8. Bd3 {[%emt 0:00:26]} Nc6 {[%emt 0:00:40]} 9. O-O {[%emt 0:00:29]} Bg4 {[%emt 0:01:10]} 10. h3 {[%emt 0:00:27]} Bh5 {[%emt 0:00:27]} 11. Bxh7+ {[%emt 0:00:31]} Kh8 {[%emt 0:02:15]} 12. Be4 {[%emt 0:01:06]} Nf6 {[%emt 0:00:35]} 13. Bxc6 {[%emt 0:01:32]} bxc6 {[%emt 0:00:26]} 14. g4 {[%emt 0:00:34]} Bg6 {[%emt 0:00:45]} 15. Ne5 {[%emt 0:00:26]} c5 {[%emt 0:03:46]} 16. d5 {[%emt 0:01:14]} Bd6 {[%emt 0:00:43]} 17. Nxg6+ {[%emt 0:00:41]} fxg6 {[%emt 0:00:26]} 18. Qd3 {[%emt 0:00:29]} Qe8 {[%emt 0:00:34]} 19. Bd2 {[%emt 0:00:53]} Qe5 {[%emt 0:00:52]} 20. f4 {[%emt 0:01:22]} Qd4+ {[%emt 0:00:27]} 21. Qxd4 {[%emt 0:00:26]} cxd4 {[%emt 0:00:26]} 22. Nb5 {[%emt 0:00:36]} Nxd5 {[%emt 0:00:38]} 23. Nxd6 {[%emt 0:00:30]} cxd6 {[%emt 0:00:26]} 24. Rf3 {[%emt 0:01:47]} Rae8 {[%emt 0:00:36]} 25. Kf2 {[%emt 0:04:07]} Nf6 {[%emt 0:02:58]} 26. Rd1 {[%emt 0:01:06]} Ne4+ {[%emt 0:00:41]} 27. Kg2 {[%emt 0:00:26]} Rc8 {[%emt 0:01:06]} 28. Rd3 {[%emt 0:01:03]} Nxd2 {[%emt 0:00:31]} 29. R1xd2 {[%emt 0:00:27]} Rxf4 {[%emt 0:00:26]} 30. Kg3 {[%emt 0:00:26]} Re4 {[%emt 0:01:21]} 31. Rxd4 {[%emt 0:00:02]} Rxd4 {[%emt 0:00:29]} 32. Rxd4 {[%emt 0:00:49]} Rc2 {[%emt 0:00:26]} 33. Rb4 {[%emt 0:01:18]} a5 {[%emt 0:00:30]} 34. Rb5 {[%emt 0:00:54]} Kg8 {[%emt 0:01:05]} 35. a4 {[%emt 0:00:39]} Kf7 {[%emt 0:00:31]} 36. Kf3 {[%emt 0:01:01]} Ke6 {[%emt 0:00:34]} 37. Ke3 {[%emt 0:00:36]} d5 {[%emt 0:01:18]} 38. Kd3 {[%emt 0:00:51]} Rh2 {[%emt 0:00:31]} 39. Kd4 {[%emt 0:02:27]} Rd2+ {[%emt 0:00:30]} 40. Ke3 {[%emt 0:00:32]} Rh2 {[%emt 0:00:26]} 41. Kf4 {[%emt 0:00:46]} Rf2+ {[%emt 0:01:09]} 42. Kg5 {[%emt 0:00:55]} Rf6 {[%emt 0:02:20]} 43. Rxa5 {[%emt 0:00:48]} Ke5 {[%emt 0:00:31]} 44. b4 {[%emt 0:00:58]} Ke4 {[%emt 0:00:38]} 45. Ra8 {[%emt 0:00:31]} Rd6 {[%emt 0:00:33]} 46. a5 {[%emt 0:00:36]} d4 {[%emt 0:00:27]} 47. a6 {[%emt 0:00:31]} Rd7 {[%emt 0:00:32]} 48. a7 {[%emt 0:00:32]} Kd5 {[%emt 0:00:27]} 49. b5 {[%emt 0:00:29]} 1-0

[Event "9th RTU Rapid 2019"]
[Site "Riga"]
[Date "2019.08.04"]
[Round "6.6"]
[White "Evchin, Maxim"]
[Black "Vishnu Prasanna. V"]
[Result "0-1"]
[WhiteElo "2269"]
[BlackElo "2465"]
[PlyCount "70"]
[EventDate "2019.08.05"]
[EventType "swiss"]
[EventCountry "LAT"]
[TimeControl "5400+30"]
[WhiteClock "0:04:03"]
[BlackClock "0:02:44"]

1. d4 {[%emt 1:15:21]} Nf6 {[%emt 1:15:21]} 2. Bg5 {[%emt 0:00:27]} c5 {[%emt 0:00:39]} 3. Bxf6 {[%emt 0:00:33]} exf6 {[%emt 0:00:46]} 4. c3 {[%emt 0:01:10]} d5 {[%emt 0:00:30]} 5. e3 {[%emt 0:00:52]} Nc6 {[%emt 0:00:28]} 6. Nd2 {[%emt 0:00:43]} cxd4 {[%emt 0:00:30]} 7. exd4 {[%emt 0:00:34]} Bd6 {[%emt 0:00:35]} 8. Bd3 {[%emt 0:00:41]} O-O {[%emt 0:00:35]} 9. Ne2 {[%emt 0:00:47]} Re8 {[%emt 0:00:43]} 10. Qc2 {[%emt 0:01:14]} g6 {[%emt 0:01:07]} 11. O-O {[%emt 0:01:00]} Ne7 {[%emt 0:00:44]} 12. Ng3 {[%emt 0:00:32]} Kg7 {[%emt 0:00:57]} 13. Rfe1 {[%emt 0:00:33]} Be6 {[%emt 0:00:37]} 14. Re2 {[%emt 0:00:49]} Bg4 {[%emt 0:00:40]} 15. Ree1 {[%emt 0:00:34]} h5 {[%emt 0:00:40]} 16. Ngf1 {[%emt 0:00:58]} Qc7 {[%emt 0:00:59]} 17. h3 {[%emt 0:00:35]} Bd7 {[%emt 0:00:39]} 18. Ne3 {[%emt 0:00:33]} b5 {[%emt 0:02:06]} 19. a3 {[%emt 0:00:34]} a6 {[%emt 0:01:01]} 20. Be2 {[%emt 0:01:21]} Rad8 {[%emt 0:02:46]} 21. Bf3 {[%emt 0:00:35]} Bc6 {[%emt 0:00:27]} 22. b4 {[%emt 0:01:10]} a5 {[%emt 0:01:40]} 23. Nb3 {[%emt 0:00:33]} a4 {[%emt 0:00:27]} 24. Nc5 {[%emt 0:00:31]} f5 {[%emt 0:00:39]} 25. Re2 {[%emt 0:01:25]} f4 {[%emt 0:00:33]} 26. Nd1 {[%emt 0:00:46]} Qc8 {[%emt 0:01:10]} 27. Nb2 {[%emt 0:00:41]} Nf5 {[%emt 0:00:29]} 28. Rae1 {[%emt 0:00:36]} Nh4 {[%emt 0:00:27]} 29. Qd3 {[%emt 0:00:46]} Rxe2 {[%emt 0:01:32]} 30. Bxe2 {[%emt 0:02:59]} Re8 {[%emt 0:00:32]} 31. Rd1 {[%emt 0:01:52]} Qd8 {[%emt 0:00:59]} 32. Bf1 {[%emt 0:01:21]} Qg5 {[%emt 0:00:29]} 33. Kh1 {[%emt 0:00:41]} f3 {[%emt 0:00:44]} 34. g3 {[%emt 0:00:30]} Bxg3 {[%emt 0:00:28]} 35. fxg3 {[%emt 0:00:29]} Qxg3 {[%emt 0:00:28]} 0-1

[Event "9th RTU Rapid 2019"]
[Site "Riga"]
[Date "2019.08.04"]
[Round "6.7"]
[White "Krivonosov, Oleg"]
[Black "Wedda, Dries"]
[Result "1-0"]
[WhiteElo "2445"]
[BlackElo "2234"]
[PlyCount "51"]
[EventDate "2019.08.05"]
[EventType "swiss"]
[EventCountry "LAT"]
[TimeControl "5400+30"]
[WhiteClock "0:06:22"]
[BlackClock "0:10:59"]

1. Nf3 {[%emt 1:15:22]} c5 {[%emt 1:15:23]} 2. c4 {[%emt 0:00:27]} Nc6 {[%emt 0:00:28]} 3. d4 {[%emt 0:00:26]} cxd4 {[%emt 0:00:26]} 4. Nxd4 {[%emt 0:00:26]} Nf6 {[%emt 0:00:27]} 5. Nc3 {[%emt 0:00:27]} e6 {[%emt 0:00:26]} 6. Bg5 {[%emt 0:00:38]} Be7 {[%emt 0:01:27]} 7. e3 {[%emt 0:00:28]} O-O {[%emt 0:00:37]} 8. Be2 {[%emt 0:00:27]} d5 {[%emt 0:01:50]} 9. cxd5 {[%emt 0:00:41]} exd5 {[%emt 0:01:09]} 10. O-O {[%emt 0:00:30]} Be6 {[%emt 0:00:40]} 11. Rc1 {[%emt 0:00:43]} Ne5 {[%emt 0:01:06]} 12. Nxe6 {[%emt 0:00:41]} fxe6 {[%emt 0:00:26]} 13. Qb3 {[%emt 0:00:48]} Rb8 {[%emt 0:02:02]} 14. Bf4 {[%emt 0:01:05]} Nfd7 {[%emt 0:01:33]} 15. Nxd5 {[%emt 0:01:06]} exd5 {[%emt 0:00:40]} 16. Qxd5+ {[%emt 0:00:26]} Nf7 {[%emt 0:00:26]} 17. Bxb8 {[%emt 0:01:02]} Nxb8 {[%emt 0:00:29]} 18. Qxb7 {[%emt 0:00:53]} Bd6 {[%emt 0:01:06]} 19. Bc4 {[%emt 0:00:41]} Qf6 {[%emt 0:01:02]} 20. Bxf7+ {[%emt 0:00:40]} Rxf7 {[%emt 0:00:38]} 21. Rc8+ {[%emt 0:00:37]} Rf8 {[%emt 0:00:26]} 22. Rxf8+ {[%emt 0:00:34]} Kxf8 {[%emt 0:01:57]} 23. Rc1 {[%emt 0:00:47]} Qe7 {[%emt 0:00:27]} 24. Rc8+ {[%emt 0:01:00]} Kf7 {[%emt 0:00:29]} 25. Rxb8 {[%emt 0:00:39]} Bxb8 {[%emt 0:00:28]} 26. Qxb8 {[%emt 0:00:27]} 1-0

[Event "9th RTU Rapid 2019"]
[Site "Riga"]
[Date "2019.08.04"]
[Round "6.8"]
[White "Grinev, Valeriy"]
[Black "Saduakassova, Dinara"]
[Result "0-1"]
[WhiteElo "2287"]
[BlackElo "2437"]
[PlyCount "72"]
[EventDate "2019.08.05"]
[EventType "swiss"]
[EventCountry "LAT"]
[TimeControl "5400+30"]
[WhiteClock "0:02:46"]
[BlackClock "0:02:21"]

1. d4 {[%emt 1:15:22]} Nf6 {[%emt 1:15:21]} 2. Nf3 {[%emt 0:00:27]} e6 {[%emt 0:00:27]} 3. e3 {[%emt 0:00:28]} b6 {[%emt 0:00:33]} 4. Bd3 {[%emt 0:00:28]} Bb7 {[%emt 0:00:26]} 5. O-O {[%emt 0:00:29]} g6 {[%emt 0:00:51]} 6. c4 {[%emt 0:00:30]} Bg7 {[%emt 0:00:27]} 7. Nc3 {[%emt 0:00:28]} d5 {[%emt 0:01:22]} 8. cxd5 {[%emt 0:01:46]} exd5 {[%emt 0:00:30]} 9. b4 {[%emt 0:00:44]} O-O {[%emt 0:00:27]} 10. a4 {[%emt 0:00:42]} Ne4 {[%emt 0:03:28]} 11. Qb3 {[%emt 0:00:28]} Nxc3 {[%emt 0:00:57]} 12. Qxc3 {[%emt 0:00:27]} c6 {[%emt 0:00:25]} 13. Bb2 {[%emt 0:01:36]} Nd7 {[%emt 0:00:30]} 14. Qb3 {[%emt 0:00:28]} a5 {[%emt 0:00:35]} 15. bxa5 {[%emt 0:00:34]} Rxa5 {[%emt 0:00:26]} 16. Bc3 {[%emt 0:00:27]} Ra7 {[%emt 0:00:33]} 17. a5 {[%emt 0:00:31]} c5 {[%emt 0:01:17]} 18. dxc5 {[%emt 0:02:55]} Nxc5 {[%emt 0:00:27]} 19. Qc2 {[%emt 0:00:27]} Bxc3 {[%emt 0:01:05]} 20. Qxc3 {[%emt 0:00:29]} Nxd3 {[%emt 0:00:27]} 21. axb6 {[%emt 0:00:34]} Rxa1 {[%emt 0:01:34]} 22. Rxa1 {[%emt 0:00:27]} Nxf2 {[%emt 0:00:27]} 23. Kxf2 {[%emt 0:00:28]} Qxb6 {[%emt 0:00:26]} 24. Qd4 {[%emt 0:00:27]} Qc7 {[%emt 0:01:28]} 25. Ne5 {[%emt 0:00:52]} Bc8 {[%emt 0:00:44]} 26. Qb2 {[%emt 0:02:32]} Bf5 {[%emt 0:02:01]} 27. Rc1 {[%emt 0:00:29]} Rb8 {[%emt 0:00:42]} 28. Qa1 {[%emt 0:01:57]} Qb6 {[%emt 0:01:02]} 29. Nc6 {[%emt 0:01:28]} Qb2+ {[%emt 0:01:12]} 30. Kg1 {[%emt 0:00:27]} Be4 {[%emt 0:01:01]} 31. Qxb2 {[%emt 0:00:58]} Rxb2 {[%emt 0:00:26]} 32. Nd8 {[%emt 0:02:35]} Rxg2+ {[%emt 0:00:38]} 33. Kf1 {[%emt 0:00:27]} Rc2 {[%emt 0:01:06]} 34. Rxc2 {[%emt 0:01:18]} Bxc2 {[%emt 0:00:27]} 35. Kf2 {[%emt 0:00:26]} Be4 {[%emt 0:00:31]} 36. Kg3 {[%emt 0:00:28]} d4 {[%emt 0:00:55]} 0-1

[Event "9th RTU Rapid 2019"]
[Site "Riga"]
[Date "2019.08.04"]
[Round "6.9"]
[White "Omelja, Artem"]
[Black "Vedrickas, Tautvydas"]
[Result "1-0"]
[WhiteElo "2436"]
[BlackElo "2231"]
[PlyCount "155"]
[EventDate "2019.08.05"]
[EventType "swiss"]
[EventCountry "LAT"]
[TimeControl "5400+30"]
[WhiteClock "0:00:12"]
[BlackClock "0:07:06"]

1. d4 {[%emt 1:15:22]} g6 {[%emt 1:15:21]} 2. c4 {[%emt 0:00:31]} Bg7 {[%emt 0:00:30]} 3. e4 {[%emt 0:00:27]} d6 {[%emt 0:00:27]} 4. Nc3 {[%emt 0:00:32]} Nc6 {[%emt 0:00:33]} 5. d5 {[%emt 0:00:30]} Nd4 {[%emt 0:01:13]} 6. Be3 {[%emt 0:00:28]} c5 {[%emt 0:00:27]} 7. dxc6 {[%emt 0:00:27]} Nxc6 {[%emt 0:00:28]} 8. Qd2 {[%emt 0:00:28]} Be6 {[%emt 0:00:47]} 9. Nf3 {[%emt 0:01:11]} h6 {[%emt 0:00:40]} 10. Nd4 {[%emt 0:00:28]} Bd7 {[%emt 0:01:42]} 11. Be2 {[%emt 0:00:31]} Nf6 {[%emt 0:00:36]} 12. h3 {[%emt 0:00:56]} Nxd4 {[%emt 0:00:55]} 13. Bxd4 {[%emt 0:00:27]} O-O {[%emt 0:00:31]} 14. O-O {[%emt 0:00:30]} Bc6 {[%emt 0:00:36]} 15. Bd3 {[%emt 0:00:27]} e6 {[%emt 0:01:09]} 16. Rad1 {[%emt 0:00:39]} b6 {[%emt 0:00:36]} 17. f4 {[%emt 0:00:39]} e5 {[%emt 0:01:48]} 18. Be3 {[%emt 0:00:37]} exf4 {[%emt 0:00:31]} 19. Bxf4 {[%emt 0:00:27]} g5 {[%emt 0:02:25]} 20. Bh2 {[%emt 0:00:27]} Re8 {[%emt 0:00:43]} 21. Qf2 {[%emt 0:00:46]} Qe7 {[%emt 0:00:50]} 22. Bc2 {[%emt 0:00:58]} Rad8 {[%emt 0:00:41]} 23. Kh1 {[%emt 0:01:21]} Kh8 {[%emt 0:00:37]} 24. Rfe1 {[%emt 0:00:38]} Nh5 {[%emt 0:03:43]} 25. Nd5 {[%emt 0:00:40]} Bxd5 {[%emt 0:01:51]} 26. exd5 {[%emt 0:00:30]} Qf6 {[%emt 0:00:29]} 27. Qxf6 {[%emt 0:00:47]} Bxf6 {[%emt 0:00:27]} 28. b4 {[%emt 0:01:31]} Nf4 {[%emt 0:01:04]} 29. Bg1 {[%emt 0:00:59]} Kg7 {[%emt 0:00:33]} 30. Ba4 {[%emt 0:00:34]} Rxe1 {[%emt 0:00:31]} 31. Rxe1 {[%emt 0:00:27]} Bc3 {[%emt 0:01:19]} 32. Rb1 {[%emt 0:00:42]} Ne2 {[%emt 0:00:31]} 33. Bf2 {[%emt 0:00:27]} f5 {[%emt 0:00:40]} 34. g3 {[%emt 0:00:50]} f4 {[%emt 0:00:33]} 35. gxf4 Nxf4 {[%emt 0:00:27]} 36. Kh2 {[%emt 0:01:31]} Nd3 {[%emt 0:00:44]} 37. Rb3 {[%emt 0:00:37]} Nxf2 {[%emt 0:01:09]} 38. Rxc3 {[%emt 0:00:26]} Rf8 {[%emt 0:00:26]} 39. Re3 {[%emt 0:00:31]} Rf4 {[%emt 0:00:31]} 40. Bb5 {[%emt 0:01:00]} Ne4 {[%emt 0:00:28]} 41. Ra3 {[%emt 0:00:26]} Rf2+ {[%emt 0:00:30]} 42. Kg1 {[%emt 0:00:26]} Rf7 {[%emt 0:00:27]} 43. Re3 {[%emt 0:00:43]} Rf4 {[%emt 0:00:26]} 44. Ra3 {[%emt 0:00:45]} Rf7 {[%emt 0:00:27]} 45. Be8 {[%emt 0:00:26]} Re7 {[%emt 0:00:28]} 46. Bc6 {[%emt 0:00:51]} Kf6 {[%emt 0:00:30]} 47. Rf3+ {[%emt 0:00:26]} Ke5 {[%emt 0:00:27]} 48. Rf8 {[%emt 0:00:30]} Kd4 {[%emt 0:00:28]} 49. Bb5 {[%emt 0:00:26]} Nd2 {[%emt 0:00:39]} 50. Rc8 {[%emt 0:00:36]} Ke3 {[%emt 0:00:32]} 51. Kg2 {[%emt 0:00:28]} Rf7 {[%emt 0:00:29]} 52. Re8+ {[%emt 0:00:37]} Ne4 {[%emt 0:00:27]} 53. c5 {[%emt 0:00:28]} bxc5 {[%emt 0:00:32]} 54. bxc5 {[%emt 0:00:26]} Rf2+ {[%emt 0:00:39]} 55. Kg1 {[%emt 0:00:26]} Rb2 {[%emt 0:00:30]} 56. Bf1 {[%emt 0:00:48]} Kf3 {[%emt 0:00:45]} 57. c6 {[%emt 0:00:37]} Rc2 {[%emt 0:00:32]} 58. c7 {[%emt 0:00:39]} Rxc7 {[%emt 0:00:34]} 59. Bg2+ {[%emt 0:00:26]} Kg3 {[%emt 0:00:29]} 60. Rxe4 {[%emt 0:00:28]} Rc1+ {[%emt 0:00:26]} 61. Bf1 {[%emt 0:00:26]} Rd1 {[%emt 0:00:27]} 62. Rg4+ {[%emt 0:00:43]} Kf3 {[%emt 0:00:28]} 63. Ra4 {[%emt 0:00:26]} h5 {[%emt 0:00:37]} 64. Rxa7 {[%emt 0:00:33]} g4 {[%emt 0:00:28]} 65. hxg4 {[%emt 0:00:41]} hxg4 {[%emt 0:00:27]} 66. Ra3+ {[%emt 0:00:28]} Ke4 {[%emt 0:00:35]} 67. Kf2 {[%emt 0:00:33]} Kxd5 {[%emt 0:00:30]} 68. Be2 {[%emt 0:00:35]} Rd2 {[%emt 0:00:27]} 69. Ke3 {[%emt 0:00:27]} Rb2 {[%emt 0:00:27]} 70. Bxg4 {[%emt 0:00:29]} Kc5 {[%emt 0:00:28]} 71. Be6 {[%emt 0:00:36]} d5 {[%emt 0:00:36]} 72. Kd3 {[%emt 0:00:44]} Kd6 {[%emt 0:00:32]} 73. Bg8 {[%emt 0:00:35]} Rg2 {[%emt 0:00:29]} 74. Ra8 {[%emt 0:00:30]} Rg3+ {[%emt 0:00:29]} 75. Kc2 {[%emt 0:00:28]} d4 {[%emt 0:00:34]} 76. Bb3 {[%emt 0:00:28]} Rc3+ {[%emt 0:00:28]} 77. Kd2 {[%emt 0:00:28]} Rg3 {[%emt 0:00:27]} 78. Ra5 {[%emt 0:00:27]} 1-0

[Event "9th RTU Rapid 2019"]
[Site "Riga"]
[Date "2019.08.04"]
[Round "6.10"]
[White "Bracker, Arne"]
[Black "Galchenko, Matvey"]
[Result "1/2-1/2"]
[WhiteElo "2227"]
[BlackElo "2360"]
[PlyCount "88"]
[EventDate "2019.08.05"]
[EventType "swiss"]
[EventCountry "LAT"]
[TimeControl "5400+30"]
[WhiteClock "0:07:41"]
[BlackClock "0:00:16"]

1. e4 {[%emt 1:15:22]} e6 {[%emt 1:15:21]} 2. d4 {[%emt 0:00:27]} d5 {[%emt 0:00:27]} 3. Nc3 {[%emt 0:00:28]} Bb4 {[%emt 0:00:25]} 4. e5 {[%emt 0:00:32]} Ne7 {[%emt 0:00:27]} 5. a3 {[%emt 0:00:41]} Bxc3+ {[%emt 0:00:26]} 6. bxc3 {[%emt 0:00:27]} c5 {[%emt 0:00:26]} 7. Qg4 {[%emt 0:00:28]} cxd4 {[%emt 0:00:26]} 8. Qxg7 {[%emt 0:00:36]} Rg8 {[%emt 0:00:27]} 9. Qxh7 {[%emt 0:00:28]} Qc7 {[%emt 0:00:27]} 10. Ne2 {[%emt 0:00:34]} Nbc6 {[%emt 0:00:26]} 11. f4 {[%emt 0:00:30]} Bd7 {[%emt 0:00:28]} 12. h4 {[%emt 0:00:41]} dxc3 {[%emt 0:00:35]} 13. h5 {[%emt 0:00:49]} O-O-O {[%emt 0:00:30]} 14. Qd3 {[%emt 0:00:39]} d4 {[%emt 0:00:28]} 15. h6 {[%emt 0:01:54]} Rg6 {[%emt 0:00:29]} 16. Rb1 {[%emt 0:01:45]} Nf5 {[%emt 0:00:36]} 17. h7 {[%emt 0:02:06]} Rh8 {[%emt 0:00:26]} 18. a4 {[%emt 0:00:48]} Qa5 {[%emt 0:00:57]} 19. Qb5 {[%emt 0:02:13]} b6 {[%emt 0:01:02]} 20. Rh3 {[%emt 0:01:53]} Rg7 {[%emt 0:01:15]} 21. Qxa5 {[%emt 0:04:17]} Nxa5 {[%emt 0:00:38]} 22. Rb4 {[%emt 0:00:28]} Nc6 {[%emt 0:00:30]} 23. Rc4 {[%emt 0:00:31]} Kb8 {[%emt 0:00:46]} 24. Kf2 {[%emt 0:00:54]} a6 {[%emt 0:02:03]} 25. g3 {[%emt 0:00:36]} b5 {[%emt 0:00:52]} 26. axb5 {[%emt 0:00:40]} axb5 {[%emt 0:00:25]} 27. Rc5 {[%emt 0:00:26]} Nb4 {[%emt 0:00:36]} 28. Bg2 {[%emt 0:01:38]} Na6 {[%emt 0:01:42]} 29. Ba3 {[%emt 0:00:55]} Rgxh7 {[%emt 0:00:41]} 30. Rxh7 {[%emt 0:00:33]} Rxh7 {[%emt 0:00:26]} 31. g4 {[%emt 0:00:37]} Ne3 {[%emt 0:00:31]} 32. Nxd4 {[%emt 0:00:31]} Nxg4+ {[%emt 0:01:45]} 33. Kg3 {[%emt 0:00:26]} Ne3 {[%emt 0:00:50]} 34. Be4 {[%emt 0:00:34]} Rg7+ {[%emt 0:00:43]} 35. Kf3 {[%emt 0:00:26]} Nxc5 {[%emt 0:00:45]} 36. Bxc5 {[%emt 0:00:30]} Nc4 {[%emt 0:00:27]} 37. Bd3 {[%emt 0:00:38]} Kb7 {[%emt 0:00:48]} 38. Bb4 {[%emt 0:00:27]} Bc6+ {[%emt 0:00:54]} 39. Nxc6 {[%emt 0:00:31]} Kxc6 {[%emt 0:00:25]} 40. Bxc3 {[%emt 0:00:29]} Kc5 {[%emt 0:00:27]} 41. Ke4 {[%emt 0:00:34]} Rg3 {[%emt 0:00:31]} 42. Bd4+ {[%emt 0:00:31]} Kb4 {[%emt 0:00:26]} 43. c3+ {[%emt 0:00:37]} Kb3 {[%emt 0:00:26]} 44. Bxc4+ {[%emt 0:00:34]} Kxc4 {[%emt 0:00:38]} 1/2-1/2

[Event "9th RTU Rapid 2019"]
[Site "Riga"]
[Date "2019.08.04"]
[Round "6.11"]
[White "Radkov, Bazhen D."]
[Black "Maltsevskaya, Aleksandra"]
[Result "1/2-1/2"]
[WhiteElo "2133"]
[BlackElo "2321"]
[PlyCount "80"]
[EventDate "2019.08.05"]
[EventType "swiss"]
[EventCountry "LAT"]
[TimeControl "5400+30"]
[WhiteClock "0:00:44"]
[BlackClock "0:00:26"]

1. d4 {[%emt 1:15:25]} Nf6 {[%emt 1:15:25]} 2. c4 {[%emt 0:00:30]} g6 {[%emt 0:00:30]} 3. Nc3 {[%emt 0:00:30]} Bg7 {[%emt 0:00:30]} 4. e4 {[%emt 0:00:30]} d6 {[%emt 0:00:30]} 5. Nf3 {[%emt 0:00:30]} O-O {[%emt 0:00:30]} 6. Be2 {[%emt 0:00:30]} e5 {[%emt 0:00:30]} 7. d5 {[%emt 0:00:30]} a5 {[%emt 0:00:30]} 8. Bg5 {[%emt 0:00:30]} h6 {[%emt 0:00:30]} 9. Bh4 {[%emt 0:00:30]} Na6 {[%emt 0:00:30]} 10. Nd2 {[%emt 0:00:40]} Nc5 {[%emt 0:00:33]} 11. O-O {[%emt 0:00:46]} g5 {[%emt 0:00:36]} 12. Bg3 {[%emt 0:00:30]} Ne8 {[%emt 0:00:35]} 13. b3 {[%emt 0:00:40]} f5 {[%emt 0:00:33]} 14. f3 {[%emt 0:00:34]} f4 {[%emt 0:01:25]} 15. Bf2 {[%emt 0:00:30]} Nf6 {[%emt 0:00:38]} 16. a3 {[%emt 0:00:40]} g4 {[%emt 0:00:33]} 17. fxg4 {[%emt 0:01:47]} Qe8 {[%emt 0:00:30]} 18. h3 {[%emt 0:01:47]} Qg6 {[%emt 0:00:36]} 19. Re1 {[%emt 0:00:38]} Rf7 {[%emt 0:01:11]} 20. b4 {[%emt 0:00:38]} axb4 21. axb4 {[%emt 0:00:30]} Rxa1 {[%emt 0:01:01]} 22. Qxa1 {[%emt 0:00:30]} Na6 {[%emt 0:00:47]} 23. Qb1 {[%emt 0:02:07]} h5 {[%emt 0:00:31]} 24. gxh5 {[%emt 0:00:30]} Nxh5 {[%emt 0:00:30]} 25. Kh2 {[%emt 0:01:01]} Bf6 {[%emt 0:01:01]} 26. Bf3 {[%emt 0:00:49]} Ng3 {[%emt 0:00:50]} 27. c5 {[%emt 0:01:56]} Rh7 {[%emt 0:00:48]} 28. Ne2 {[%emt 0:01:59]} Qh6 {[%emt 0:00:44]} 29. Ng1 {[%emt 0:00:58]} Bh4 {[%emt 0:02:51]} 30. cxd6 {[%emt 0:01:10]} cxd6 {[%emt 0:02:45]} 31. Nc4 {[%emt 0:01:07]} Nf5 {[%emt 0:00:37]} 32. exf5 {[%emt 0:01:42]} Bxf2 {[%emt 0:00:30]} 33. Re2 {[%emt 0:00:44]} Bd4 {[%emt 0:00:53]} 34. b5 {[%emt 0:00:59]} Nc7 {[%emt 0:01:53]} 35. Be4 {[%emt 0:00:32]} Ne8 {[%emt 0:01:38]} 36. Nf3 {[%emt 0:00:30]} Bc5 {[%emt 0:00:30]} 37. f6 {[%emt 0:01:27]} Nxf6 {[%emt 0:02:14]} 38. Bxh7+ {[%emt 0:00:34]} Nxh7 {[%emt 0:00:30]} 39. Qc2 {[%emt 0:01:08]} Ng5 {[%emt 0:01:05]} 40. Ncxe5 {[%emt 0:00:46]} Bxh3 {[%emt 0:01:03]} 1/2-1/2